bitfinex-derivatives/quotes_ETHF0:USTF0_20260222
["timestamp","ask_amount","ask_price","bid_price","bid_amount"]
[1771725322160,0.57849495,1977.1,1976.5,0.00462069]
[1771725329274,0.57215134,1976.9,1976.5,0.00462069]
[1771725330375,0.57215134,1976.9,1976.1,0.55206536]
[1771725331277,0.57215134,1976.9,1976.1,0.55684621]
[1771725331579,0.57215134,1976.9,1976.3,0.55206536]
[1771725332778,0.57215134,1976.9,1976.5,0.55206536]
[1771725332973,0.57215134,1977.0,1976.7,0.55206536]
[1771725333169,0.57849495,1977.1,1976.7,0.55206536]
[1771725334479,0.00634361,1977.1,1976.7,0.55206536]
[1771725334675,0.57215134,1977.3,1976.9,0.55206536]
[1771725335773,0.57783823,1977.3,1976.9,0.55206536]
[1771725336279,0.57215134,1977.0,1976.3,0.55206536]
[1771725349099,6.29578931,1976.9,1976.3,0.55206536]
[1771725349299,0.54551736,1976.9,1976.3,0.55206536]
[1771725355703,0.54551736,1977.1,1976.3,0.55206536]
[1771725355902,6.29777504,1977.0,1976.3,0.55206536]
[1771725356103,0.54551736,1977.0,1976.3,0.55206536]
[1771725362914,0.54551736,1977.1,1976.3,0.55206536]
[1771725363113,0.55120425,1977.3,1976.4,0.54618806]
[1771725363315,5.75172583,1977.2,1976.4,0.54618806]
[1771725363509,0.54551736,1977.2,1976.4,0.54618806]
[1771725363911,0.54551736,1977.0,1976.4,0.54618806]
[1771725364510,0.54551736,1977.2,1976.4,0.54618806]
[1771725364707,6.29748348,1977.1,1976.4,0.54618806]
[1771725364912,0.54551736,1977.1,1976.4,0.54618806]
[1771725366117,5.75263342,1977.0,1976.4,0.54618806]
[1771725366312,0.54551736,1977.1,1976.4,0.54618806]
[1771725366614,5.75379962,1977.0,1976.4,0.54618806]
[1771725366807,0.54551736,1977.1,1976.4,0.54618806]
[1771725367007,5.75379962,1977.0,1976.4,0.54618806]
[1771725367212,0.54551736,1977.1,1976.4,0.54618806]
[1771725367413,5.75378052,1977.0,1976.4,0.54618806]
[1771725367709,0.54551736,1977.1,1976.4,0.54618806]
[1771725367912,5.75377995,1977.0,1976.4,0.54618806]
[1771725368109,0.54551736,1977.1,1976.4,0.54618806]
[1771725368311,5.7537725,1977.0,1976.4,0.54618806]
[1771725368507,0.54551736,1977.1,1976.4,0.54618806]
[1771725368711,5.75377221,1977.0,1976.4,0.54618806]
[1771725368913,0.54551736,1977.1,1976.4,0.54618806]
[1771725369110,5.75377221,1977.0,1976.4,0.54618806]
[1771725369313,0.54551736,1977.1,1976.4,0.54618806]
[1771725369509,0.54520401,1976.9,1976.4,0.54618806]
[1771725374713,0.58757451,1977.1,1976.4,0.54618806]
[1771725374918,6.34121091,1977.0,1976.4,0.54618806]
[1771725375117,0.58757451,1977.0,1976.4,0.54618806]
[1771725375518,5.73329569,1976.9,1976.4,0.54618806]
[1771725375819,0.58757451,1977.0,1976.4,0.54618806]
[1771725376017,5.73329571,1976.9,1976.4,0.54618806]
[1771725376217,0.58757451,1977.0,1976.4,0.54618806]
[1771725376420,5.73333154,1976.9,1976.4,0.54618806]
[1771725376614,0.58757451,1977.0,1976.4,0.54618806]
[1771725376820,5.73333154,1976.9,1976.4,0.54618806]
[1771725377021,0.58757451,1977.0,1976.4,0.54618806]
[1771725377320,6.32094167,1976.9,1976.4,0.54618806]
[1771725377519,0.58757451,1976.9,1976.4,0.54618806]
[1771725378223,0.58757451,1977.1,1976.4,0.54618806]
[1771725378524,4.23622903,1977.2,1976.4,0.54618806]
[1771725378525,6.32097343,1977.0,1976.4,0.54618806]
[1771725378726,0.58757451,1977.0,1976.4,0.54618806]
[1771725387439,0.58757451,1977.0,1976.2,0.59760241]
[1771725387727,0.58757451,1976.8,1976.2,0.59760241]
[1771725390940,0.58757451,1977.0,1976.2,0.59760241]
[1771725394234,0.00568689,1977.3,1976.8,0.59760241]
[1771725394432,0.5932614,1977.3,1976.8,0.59760241]
[1771725397741,0.00568689,1977.3,1976.8,0.59760241]
[1771725404434,0.55937513,1977.2,1976.2,7.89659073]
[1771725404638,0.55937513,1977.2,1976.3,0.54977524]
[1771725413848,0.55937513,1977.1,1976.4,0.54977524]
[1771725420261,0.00568689,1977.3,1976.6,0.54977524]
[1771725420262,0.56506202,1977.3,1976.6,0.54977524]
[1771725427763,0.00568689,1977.3,1976.8,0.54977524]
[1771725428060,0.55937513,1977.5,1977.0,0.54549431]
[1771725428865,0.56551071,1977.5,1977.0,0.54549431]
[1771725438067,0.00613558,1977.5,1977.2,0.54454026]
[1771725438267,0.57562226,1977.9,1977.2,0.54454026]
[1771725438471,0.57562226,1977.7,1977.2,0.54454026]
[1771725439261,0.5811622,1977.7,1977.2,0.54454026]
[1771725441466,0.00553994,1977.7,1977.2,0.54454026]
[1771725441868,0.5811622,1977.7,1977.2,0.54454026]
[1771725442762,0.5811622,1977.7,1976.9,1.63866659]
[1771725442763,0.5811622,1977.7,1977.0,0.54454026]
[1771725451475,0.00553994,1977.7,1977.2,0.54454026]
[1771725451678,0.5811622,1977.7,1977.2,0.54454026]
[1771725468090,0.00553994,1977.7,1977.2,0.54454026]
[1771725469885,0.5635841,1977.7,1977.2,0.54454026]
[1771725498914,0.00553994,1977.7,1977.2,0.54454026]
[1771725503822,0.5932676,1977.7,1977.2,0.54454026]
[1771725541151,0.00553994,1977.7,1977.2,2.18189465]
[1771725541352,0.55194429,1977.7,1977.3,0.57710985]
[1771725542548,0.55194429,1977.7,1977.0,9.53394512]
[1771725542849,0.55194429,1977.7,1977.1,0.57710985]
[1771725548261,0.55194429,1977.7,1977.3,0.59455245]
[1771725581589,0.00553994,1977.7,1977.3,0.59455245]
[1771725582691,0.58843066,1977.7,1977.1,0.55065335]
[1771725591894,0.00553994,1977.7,1977.1,0.55065335]
[1771725592199,0.00553994,1977.7,1977.3,0.55065335]
[1771725592601,0.58289072,1977.9,1977.3,0.55065335]
[1771725592798,6.31162358,1977.8,1977.3,0.55065335]
[1771725592999,0.58289072,1977.8,1977.3,0.55065335]
[1771725593595,0.00411786,1977.8,1977.3,0.55065335]
[1771725593901,0.00411786,1977.8,1977.5,0.55065335]
[1771725594102,0.00411786,1977.8,1977.5,0.55612556]
[1771725594402,0.58289072,1978.0,1977.5,0.55612556]
[1771725594802,2.22024511,1978.0,1977.5,0.00547221]
[1771725595005,0.58289072,1977.7,1977.2,0.55065335]
[1771725595905,0.58850541,1977.7,1977.2,0.55587548]
[1771725598803,0.00561469,1977.7,1977.2,0.55587548]
[1771725599002,0.58289072,1977.9,1977.2,0.55587548]
[1771725600102,0.58909219,1977.9,1977.2,0.55587548]
[1771725614422,0.59054612,1977.7,1977.2,0.55587548]
[1771725617924,0.59674759,1977.9,1977.2,0.55587548]
[1771725622330,0.59054612,1977.7,1977.2,0.55587548]
[1771725649751,0.5673436,1977.5,1976.8,0.60164308]
[1771725649951,0.5673436,1977.3,1976.8,0.60164308]
[1771725650652,0.5673436,1977.3,1976.8,0.60590828]
[1771725665461,0.5673436,1977.3,1976.8,0.0042652]
[1771725666365,0.5673436,1977.3,1976.8,0.60590828]
[1771725678083,0.5673436,1977.3,1976.8,0.59804644]
[1771725680988,0.5673436,1977.3,1976.4,7.93351742]
[1771725680989,6.30681898,1977.2,1976.7,0.59378124]
[1771725681189,0.55518844,1977.2,1976.7,0.59378124]
[1771725682187,0.55518844,1977.2,1976.7,0.59792724]
[1771725716005,0.57150083,1976.9,1976.5,0.57388838]
[1771725716510,0.57150083,1976.9,1976.0,9.24030102]
[1771725716511,0.57150083,1976.9,1976.1,0.57388838]
[1771725717110,0.57150083,1976.9,1976.1,0.57967211]
[1771725725307,0.57150083,1977.1,1976.2,0.57388838]
[1771725725504,6.30986406,1977.0,1976.2,0.57388838]
[1771725725708,0.57150083,1977.0,1976.2,0.57388838]
[1771725726811,0.57150083,1976.8,1976.2,0.57388838]
[1771725730215,0.57150083,1976.8,1976.1,0.00578373]
[1771725730410,0.57150083,1976.8,1976.1,0.5855391]
[1771725734815,0.57150083,1976.8,1975.2,8.33333114]
[1771725734816,0.57304366,1976.6,1975.9,0.5966094]
[1771725735715,0.57304366,1976.6,1975.9,0.60311428]
[1771725738817,0.57304366,1976.9,1976.1,0.5966094]
[1771725745419,0.57304366,1976.7,1976.1,0.5966094]
[1771725751427,0.57304366,1976.7,1976.0,0.5966094]
[1771725757431,0.57304366,1976.5,1975.9,0.00650488]
[1771725757632,0.57304366,1976.5,1975.8,0.5966094]
[1771725757633,0.57304366,1976.3,1975.8,0.5966094]
[1771725758634,0.57304366,1976.3,1975.8,0.60141972]
[1771725759632,0.55942024,1976.5,1975.8,0.60141972]
[1771725759833,0.55942024,1976.5,1975.8,2.24052086]
[1771725760038,0.55942024,1976.5,1975.9,0.60302918]
[1771725760039,0.00619072,1976.5,1975.9,0.60302918]
[1771725762239,0.55942024,1976.5,1975.9,0.60302918]
[1771725785853,0.55942024,1976.5,1976.1,0.60302918]
[1771725787053,0.00619072,1976.5,1976.1,0.60302918]
[1771725787748,0.55942024,1976.5,1976.1,0.60302918]
[1771725788960,0.00619072,1976.5,1976.2,1.63946008]
[1771725789155,0.56935132,1976.7,1976.3,0.56483094]
[1771725789457,0.56935132,1977.1,1976.7,0.56483094]
[1771725789647,5.72315552,1977.0,1976.7,0.56483094]
[1771725789853,0.56935132,1977.1,1976.7,0.56483094]
[1771725790049,5.72316635,1977.0,1976.7,0.56483094]
[1771725790250,0.57393325,1977.1,1976.7,0.56483094]
[1771725790454,5.71801374,1977.0,1976.7,0.56483094]
[1771725790656,0.57393325,1977.1,1976.7,0.56483094]
[1771725792957,0.00458193,1977.1,1976.9,0.58409056]
[1771725793162,0.54669526,1977.3,1976.9,0.58409056]
[1771725794049,0.55308349,1977.3,1976.9,0.58409056]
[1771725794251,0.54669526,1977.4,1977.1,0.58409056]
[1771725794455,0.54669526,1977.5,1977.1,0.58409056]
[1771725795354,0.55140073,1977.5,1977.1,0.58409056]
[1771725795956,0.00470547,1977.5,1977.1,0.58409056]
[1771725796152,0.54669526,1977.8,1977.3,0.58409056]
[1771725796351,0.54669526,1978.1,1977.5,0.58409056]
[1771725796550,0.54669526,1977.9,1977.5,0.58409056]
[1771725797150,0.5505678,1977.9,1977.5,0.59063102]
[1771725798957,0.00387254,1977.9,1977.6,1.63946008]
[1771725799165,0.54669526,1978.1,1977.7,0.58409056]
[1771725799363,0.06277379,1978.5,1977.7,0.58409056]
[1771725800160,0.06740319,1978.5,1977.7,0.58409056]
[1771725804964,0.0606803,1979.3,1978.4,0.58409056]
[1771725805164,0.0606803,1979.2,1978.4,0.58409056]
[1771725805470,0.05827529,1979.0,1978.4,0.58409056]
[1771725805971,0.00604866,1979.0,1978.6,0.58409056]
[1771725806266,0.05827526,1979.4,1978.8,0.58409056]
[1771725806469,0.05827526,1979.5,1978.8,0.58409056]
[1771725807068,0.06267544,1979.5,1978.8,0.58409056]
[1771725808559,0.00440018,1979.5,1978.8,0.58409056]
[1771725808766,0.00440018,1979.5,1979.0,0.58409056]
[1771725808967,0.00440018,1979.5,1979.0,0.59061941]
[1771725809772,1.63946008,1979.4,1978.9,0.58409056]
[1771725809970,0.00440018,1979.5,1978.9,0.58409056]
[1771725810669,0.05692406,1979.5,1978.9,0.58409056]
[1771725810872,0.05692406,1979.5,1978.9,0.59021292]
[1771725811568,1.63946008,1979.4,1978.9,0.59021292]
[1771725812168,1.63946008,1978.7,1977.9,0.58409056]
[1771725812368,1.63946008,1978.5,1977.9,0.58409056]
[1771725813177,1.63946008,1978.5,1977.9,0.58828306]
[1771725813976,0.54669526,1978.6,1977.9,0.58828306]
[1771725814178,0.54669526,1979.2,1977.9,0.58828306]
[1771725824290,0.25271,1979.3,1977.9,0.58828306]
[1771725824291,0.57339254,1979.0,1977.9,0.58828306]
[1771725825597,4.50262024,1979.3,1977.9,0.58828306]
[1771725825598,0.57339254,1979.2,1977.9,0.58828306]
[1771725826395,0.57339254,1979.2,1978.0,0.56649132]
[1771725826700,0.82610254,1979.3,1978.0,0.56649132]
[1771725827092,0.57339254,1979.3,1978.0,0.56649132]
[1771725831003,0.57339254,1979.3,1978.2,0.56649132]
[1771725831504,0.57339254,1979.3,1978.1,2.45449508]
[1771725831505,0.00440018,1979.5,1978.4,0.56649132]
[1771725833502,0.92581487,1980.5,1978.7,6.21853]
[1771725833695,0.60310343,1981.3,1979.9,2.45449508]
[1771725833897,19.24580965,1981.1,1980.0,6.625]
[1771725834102,0.60310343,1981.0,1979.9,0.56649132]
[1771725834304,0.60310343,1981.0,1980.1,0.56649132]
[1771725834501,0.60310343,1980.8,1980.4,0.56649132]
[1771725834700,0.91798025,1980.7,1980.5,7.24739271]
[1771725834901,0.91798025,1980.7,1980.6,6.68090139]
[1771725835102,7.49366711,1980.7,1980.6,3.38713604]
[1771725835307,8.41164736,1980.7,1980.6,3.95362736]
[1771725835604,12.24050065,1980.7,1980.4,0.56649132]
[1771725835803,8.41164736,1980.6,1980.4,0.56649132]
[1771725836002,8.06705965,1980.8,1980.4,0.56649132]
[1771725836204,5.32022608,1980.7,1980.4,0.56649132]
[1771725836408,5.32022608,1980.7,1980.1,4.20413773]
[1771725836409,0.57339254,1980.4,1979.5,0.56649132]
[1771725836709,0.57339254,1980.1,1979.2,0.56649132]
[1771725837005,0.57339254,1979.9,1979.2,0.56649132]
[1771725837204,0.75595804,1979.8,1979.2,0.56649132]
[1771725837404,0.75595804,1979.7,1979.2,0.57163444]
[1771725837606,0.77349707,1979.6,1979.2,0.57163444]
[1771725837805,0.0052038,1979.6,1979.2,0.57163444]
[1771725838008,0.68455996,1980.9,1979.6,0.56649132]
[1771725838196,0.68455996,1980.7,1979.8,0.56649132]
[1771725838401,0.67456192,1980.5,1979.8,0.56649132]
[1771725838911,0.68111866,1980.5,1979.8,0.56649132]
[1771725840810,0.68111866,1980.5,1980.0,0.56649132]
[1771725841211,4.50997195,1980.5,1980.0,0.56649132]
[1771725841407,0.66510402,1980.4,1979.8,0.56649132]
[1771725841612,0.66510402,1980.3,1979.8,0.56649132]
[1771725842311,0.66510402,1980.2,1979.8,0.56649132]
[1771725844312,4.49395731,1980.2,1979.8,0.56649132]
[1771725845114,0.66269248,1980.1,1979.4,0.56649132]
[1771725845315,0.66269248,1980.0,1979.6,0.56649132]
[1771725846615,0.6629693,1980.4,1979.6,0.56649132]
[1771725846811,0.6629693,1980.2,1979.6,0.56649132]
[1771725847211,4.55073393,1980.1,1979.6,0.56649132]
[1771725847412,0.72188064,1980.1,1979.6,0.56649132]
[1771725847916,4.55073393,1980.1,1979.6,0.56649132]
[1771725848116,1.63517215,1980.0,1979.7,1.74397449]
[1771725848514,1.63517215,1979.9,1979.4,8.36397449]
[1771725848815,1.63517215,1979.8,1979.4,8.36397449]
[1771725849415,1.63517215,1979.8,1979.5,1.74397449]
[1771725849813,5.46402544,1979.8,1979.5,1.74397449]
[1771725850010,1.63517215,1979.7,1979.3,1.74397449]
[1771725850317,1.63517215,1979.7,1979.2,8.36911761]
[1771725850715,5.46402544,1979.6,1979.2,6.62514312]
[1771725851016,1.63517215,1979.6,1979.2,8.36911761]
[1771725851418,1.63517215,1979.6,1979.2,1.74911761]
[1771725851620,1.63517215,1980.4,1979.3,1.74397449]
[1771725851919,1.63517215,1980.1,1979.3,1.74397449]
[1771725852219,1.65117473,1979.9,1979.3,1.74397449]
[1771725852419,2.36939011,1979.8,1979.3,1.74397449]
[1771725852620,1.65117473,1979.8,1979.3,1.74397449]
[1771725853518,1.65117473,1979.6,1979.3,1.74397449]
[1771725854717,1.65117473,1979.6,1979.2,1.77200001]
[1771725855022,1.65117473,1979.5,1979.2,8.39300001]
[1771725855224,1.65117473,1979.5,1979.3,5.98761849]
[1771725855524,0.00655674,1980.5,1979.4,5.99132638]
[1771725855525,1.65117473,1980.4,1979.4,5.99132638]
[1771725855722,1.65117473,1979.6,1979.3,1.76685689]
[1771725855918,1.65117473,1979.6,1979.4,5.99135979]
[1771725856120,3.82885329,1979.5,1979.3,1.76685689]
[1771725856314,1.65117473,1979.5,1979.2,0.00514312]
[1771725856520,1.65117473,1979.5,1979.3,5.99515463]
[1771725856722,5.48002802,1979.4,1979.2,0.00514312]
[1771725857024,1.65117473,1979.4,1979.3,5.99547869]
[1771725857223,1.65117473,1979.8,1979.3,5.99547869]
[1771725857424,0.69612237,1979.7,1979.4,5.99547869]
[1771725857729,0.69612237,1979.6,1979.0,6.29729885]
[1771725858029,1.65117473,1979.8,1979.0,6.29729885]
[1771725858030,1.65117473,1979.8,1979.1,5.9969975]
[1771725858229,2.43174897,1979.7,1979.3,0.25636785]
[1771725858527,0.68876514,1979.6,1979.4,6.25336535]
[1771725858728,1.74298383,1979.7,1979.4,0.25636785]
[1771725859429,1.74298383,1979.7,1979.5,6.00399835]
[1771725859631,1.74298383,1979.7,1979.4,0.25636785]
[1771725859929,1.75479323,1980.3,1979.5,6.00420928]
[1771725860129,1.75479323,1980.3,1979.4,0.25636785]
[1771725860328,1.75479323,1980.3,1979.5,6.007177]
[1771725860528,1.75479323,1980.3,1979.4,0.25636785]
[1771725860728,1.75479323,1980.3,1979.5,6.00762632]
[1771725860929,1.75479323,1980.3,1979.4,0.25636785]
[1771725861129,1.75479323,1980.3,1979.5,6.00724521]
[1771725861329,1.75479323,1980.3,1979.4,0.25636785]
[1771725861526,1.75479323,1980.3,1979.5,6.01083502]
[1771725861726,1.75479323,1980.3,1979.4,0.25636785]
[1771725861929,1.75479323,1980.3,1979.5,6.01084495]
[1771725862232,1.75479323,1980.3,1979.4,0.25636785]
[1771725862431,1.75479323,1980.3,1979.5,6.01139969]
[1771725862623,1.75479323,1980.3,1979.4,0.25636785]
[1771725862826,1.75479323,1980.3,1979.5,6.0131898]
[1771725863026,1.75479323,1980.3,1979.4,0.25636785]
[1771725863226,1.75479323,1980.3,1979.5,6.01319343]
[1771725863427,1.75479323,1980.3,1979.6,6.01545974]
[1771725863627,1.75479323,1980.3,1979.4,0.25636785]
[1771725863922,1.75479323,1980.3,1979.5,6.01545974]
[1771725864230,1.75479323,1980.3,1979.3,0.18883634]
[1771725864430,1.75479323,1980.3,1979.4,6.01839429]
[1771725864625,1.65117473,1979.7,1979.0,0.00477042]
[1771725864833,1.65117473,1979.5,1978.5,1.76685689]
[1771725865022,11.27766,1980.3,1978.4,6.29729885]
[1771725865023,1.65117473,1979.3,1978.4,1.76685689]
[1771725865929,1.65117473,1979.3,1978.4,1.77145207]
[1771725870636,0.65866076,1979.2,1978.4,1.77145207]
[1771725870837,0.65866076,1979.1,1978.4,1.77145207]
[1771725871036,0.65866076,1979.0,1978.4,1.77145207]
[1771725871233,0.00656279,1979.1,1978.4,1.77145207]
[1771725871434,0.65871638,1979.0,1978.4,1.77145207]
[1771725871634,0.00656279,1979.1,1978.4,1.77145207]
[1771725871836,0.65871605,1979.0,1978.4,1.77145207]
[1771725872136,0.00656279,1979.1,1978.4,1.77145207]
[1771725872337,0.65877042,1979.0,1978.4,1.77145207]
[1771725872536,0.00656279,1979.1,1978.4,1.77145207]
[1771725872737,0.65877059,1979.0,1978.4,1.77145207]
[1771725873037,0.00656279,1979.1,1978.4,1.77145207]
[1771725873234,2.30999097,1979.0,1978.4,1.77145207]
[1771725873431,0.00656279,1979.1,1978.4,1.77145207]
[1771725873432,2.30999513,1978.9,1978.4,1.77145207]
[1771725873628,1.65117473,1978.9,1978.4,1.77145207]
[1771725875036,2.31008119,1978.8,1978.4,1.77145207]
[1771725875234,1.65117473,1978.8,1978.4,1.77145207]
[1771725878943,0.00656279,1979.1,1978.4,1.77145207]
[1771725879142,18.64270622,1978.7,1978.4,1.77145207]
[1771725879345,1.7976719,1978.9,1978.4,1.77145207]
[1771725879539,2.45703038,1978.8,1978.4,1.77145207]
[1771725879740,1.7976719,1978.8,1978.4,1.77145207]
[1771725882144,0.65951413,1978.7,1978.4,1.77145207]
[1771725882345,1.7976719,1978.8,1978.4,1.77145207]
[1771725882545,0.65951403,1978.7,1978.4,1.77145207]
[1771725882745,1.7976719,1978.8,1978.4,1.77145207]
[1771725882944,0.65951511,1978.7,1978.4,1.77145207]
[1771725883148,1.7976719,1978.8,1978.4,1.77145207]
[1771725883347,0.65960591,1978.7,1978.4,1.77145207]
[1771725883548,1.7976719,1978.8,1978.4,1.77145207]
[1771725883747,0.65960601,1978.7,1978.4,1.77145207]
[1771725883947,1.7976719,1978.8,1978.4,1.77145207]
[1771725884147,0.65960598,1978.7,1978.4,1.77145207]
[1771725884349,1.7976719,1978.8,1978.4,1.77145207]
[1771725884549,0.65972482,1978.7,1978.4,1.77145207]
[1771725884847,1.7976719,1978.8,1978.4,1.77145207]
[1771725885048,0.65972474,1978.7,1978.4,1.77145207]
[1771725885248,1.7976719,1978.8,1978.4,1.77145207]
[1771725885445,0.65984137,1978.7,1978.4,1.77145207]
[1771725885644,1.7976719,1978.8,1978.4,1.77145207]
[1771725885851,2.45751336,1978.7,1978.4,1.77145207]
[1771725886053,0.65997066,1978.6,1978.4,1.77145207]
[1771725886352,1.7976719,1978.7,1978.4,1.77145207]
[1771725886651,0.65997081,1978.6,1978.4,1.77145207]
[1771725886851,1.7976719,1978.7,1978.4,1.77145207]
[1771725887052,0.65997068,1978.6,1978.4,1.77145207]
[1771725887251,1.7976719,1979.0,1978.4,1.77145207]
[1771725887452,1.7976719,1978.8,1978.4,1.77145207]
[1771725887650,2.45772414,1978.7,1978.4,1.77145207]
[1771725887850,0.66005224,1978.6,1978.4,1.77145207]
[1771725888154,1.7976719,1978.7,1978.4,1.77145207]
[1771725888352,0.66022676,1978.6,1978.4,1.77145207]
[1771725888552,1.7976719,1978.7,1978.4,1.77145207]
[1771725888754,0.66022666,1978.6,1978.4,1.77145207]
[1771725889054,1.7976719,1978.7,1978.4,1.77145207]
[1771725889254,0.66044011,1978.6,1978.4,1.77145207]
[1771725889554,1.7976719,1978.7,1978.4,1.77145207]
[1771725889755,0.66044022,1978.6,1978.4,1.77145207]
[1771725890053,1.7976719,1978.7,1978.4,1.77145207]
[1771725890253,0.66070166,1978.6,1978.4,1.77145207]
[1771725890454,1.7976719,1978.7,1978.4,1.77145207]
[1771725890648,0.66070177,1978.6,1978.4,1.77145207]
[1771725890852,1.7976719,1978.7,1978.4,1.77145207]
[1771725891050,0.66070172,1978.6,1978.4,1.77145207]
[1771725891251,1.7976719,1978.7,1978.4,0.00459518]
[1771725891558,1.7976719,1978.5,1978.1,1.94883476]
[1771725892350,1.7976719,1978.5,1978.1,1.95249893]
[1771725894351,1.7976719,1978.5,1978.2,1.94883476]
[1771725894755,18.64270622,1978.3,1978.2,1.94883476]
[1771725895054,18.64270622,1978.3,1978.2,1.26466494]
[1771725895250,18.64270622,1978.3,1978.2,0.60396322]
[1771725896057,1.7976719,1979.0,1978.2,0.60396322]
[1771725896258,1.7976719,1979.0,1978.3,1.94883476]
[1771725896458,1.7976719,1979.0,1978.4,1.94883476]
[1771725897554,1.7976719,1979.0,1978.3,6.17841047]
[1771725897756,0.00656279,1979.1,1978.4,1.94883476]
[1771725898061,1.7976719,1979.5,1978.9,1.94883476]
[1771725898357,1.7976719,1979.5,1979.0,2.43965513]
[1771725898557,1.7976719,1979.5,1979.1,0.49082037]
[1771725898756,1.7976719,1979.5,1979.2,0.49082037]
[1771725898957,1.80268587,1979.5,1978.9,1.94883476]
[1771725899159,1.80268587,1979.5,1979.0,1.94883476]
[1771725900262,0.00501397,1979.5,1979.0,1.94883476]
[1771725900459,1.7976719,1979.6,1979.2,1.94883476]
[1771725900660,1.32709667,1980.2,1979.2,1.94883476]
[1771725900860,1.32709667,1980.2,1979.4,1.94883476]
[1771725901460,1.33329274,1980.2,1979.4,1.94883476]
[1771725910967,1.33329274,1980.2,1979.5,2.33386855]
[1771725911168,18.64270622,1979.7,1979.6,0.50449855]
[1771725911664,1.35374579,1979.9,1979.2,1.82937]
[1771725912769,1.35374579,1979.9,1979.2,1.83466423]
[1771725923676,1.35374579,1979.9,1979.3,0.46286895]
[1771725923882,1.35374579,1979.9,1979.2,1.83466423]
[1771725924082,1.35374579,1979.9,1979.3,0.46290158]
[1771725924388,1.35374579,1979.9,1979.2,1.83466423]
[1771725924682,1.35374579,1979.9,1979.3,0.46153679]
[1771725924881,1.35374579,1979.9,1979.2,1.83466423]
[1771725925082,1.35374579,1979.9,1979.3,0.4615142]
[1771725925280,1.35374579,1979.9,1979.4,0.4615142]
[1771725925478,1.35374579,1979.9,1979.2,1.83466423]
[1771725925678,1.35374579,1979.9,1979.3,0.46188199]
[1771725925879,1.35374579,1979.9,1979.4,0.46188199]
[1771725926083,1.35374579,1979.9,1979.5,0.46234018]
[1771725926284,1.35374579,1979.9,1979.2,1.83466423]
[1771725926582,1.35374579,1979.9,1979.3,2.22940002]
[1771725926782,1.35374579,1979.9,1979.4,2.22940002]
[1771725926983,1.35374579,1979.9,1979.5,0.46236523]
[1771725927183,1.35374579,1979.9,1979.4,1.76703479]
[1771725927380,1.35374579,1979.9,1979.5,0.45119771]
[1771725927579,1.35374579,1979.9,1979.4,1.76703479]
[1771725927773,1.35374579,1979.9,1979.5,0.45119588]
[1771725927974,1.35374579,1979.9,1979.4,1.76703479]
[1771725928183,1.35374579,1979.9,1979.5,0.45119581]
[1771725928384,1.35374579,1979.9,1979.4,1.76703479]
[1771725928582,1.35374579,1979.9,1979.5,0.45129736]
[1771725928782,1.35374579,1979.9,1979.3,1.76703479]
[1771725928983,1.35374579,1979.9,1979.4,0.45129706]
[1771725929184,1.35374579,1979.9,1979.5,0.45129706]
[1771725929384,1.35374579,1979.9,1979.3,1.76703479]
[1771725929586,1.35374579,1979.9,1979.2,0.00529423]
[1771725929587,1.35374579,1979.9,1979.4,2.2122591]
[1771725929884,1.35374579,1979.9,1979.5,0.44522431]
[1771725930074,1.35374579,1979.9,1979.4,1.76703479]
[1771725930279,1.35374579,1979.9,1979.5,0.44522363]
[1771725930483,1.35374579,1979.9,1979.4,1.76703479]
[1771725930684,1.35374579,1979.9,1979.5,0.44522363]
[1771725930884,1.35374579,1979.9,1979.4,1.76703479]
[1771725931085,1.35374579,1979.9,1979.5,0.44522376]
[1771725931283,1.35374579,1979.9,1979.4,1.76703479]
[1771725931484,1.35374579,1979.9,1979.5,0.44523221]
[1771725931684,1.35374579,1979.9,1979.4,1.76703479]
[1771725931888,1.35374579,1979.9,1979.5,0.44523221]
[1771725932179,1.35374579,1979.9,1979.4,1.76703479]
[1771725932387,1.35374579,1979.9,1979.5,0.44524651]
[1771725932581,1.35374579,1979.9,1979.4,1.76703479]
[1771725932783,1.35374579,1979.9,1979.5,0.44524644]
[1771725932984,1.35374579,1979.9,1979.4,1.76703479]
[1771725933184,1.35374579,1979.9,1979.5,0.44524653]
[1771725933387,1.35374579,1979.9,1979.4,1.76703479]
[1771725933586,1.35374579,1979.9,1979.5,0.44423139]
[1771725933787,1.35374579,1979.9,1979.4,1.76703479]
[1771725933988,1.35374579,1979.9,1979.5,0.44423146]
[1771725934188,1.35374579,1979.9,1979.4,1.76703479]
[1771725934389,1.35374579,1979.9,1979.5,0.43603717]
[1771725934588,1.35374579,1979.9,1979.4,1.76703479]
[1771725934789,1.35374579,1979.9,1979.5,0.43603704]
[1771725934986,1.35374579,1979.9,1979.4,1.76703479]
[1771725935186,1.35374579,1979.9,1979.5,2.20307188]
[1771725935390,1.35374579,1979.9,1979.5,1.76703479]
[1771725938195,1.35374579,1979.9,1979.3,1.73660504]
[1771725938389,1.35374579,1979.9,1979.4,2.17281367]
[1771725938590,1.35374579,1979.9,1979.5,0.43620863]
[1771725938791,1.35374579,1979.9,1979.4,1.73660504]
[1771725939090,1.35374579,1979.9,1979.5,0.43621189]
[1771725939291,1.35374579,1979.9,1979.4,1.73660504]
[1771725939490,1.35374579,1979.9,1979.5,0.43628818]
[1771725939691,1.35374579,1979.9,1979.4,1.73660504]
[1771725939892,1.35374579,1979.9,1979.5,0.43628811]
[1771725940096,1.35374579,1979.9,1979.4,1.73660504]
[1771725940294,1.35374579,1979.9,1979.5,0.43641656]
[1771725940494,1.35374579,1979.9,1979.4,1.73660504]
[1771725940696,1.35374579,1979.9,1979.5,0.43641549]
[1771725940995,1.35374579,1979.9,1979.4,1.73660504]
[1771725941196,1.35374579,1979.9,1979.5,0.43641324]
[1771725941396,1.35374579,1979.9,1979.6,0.43641324]
[1771725941591,1.35374579,1979.9,1979.4,1.73660504]
[1771725941792,1.35374579,1979.9,1979.5,0.43657319]
[1771725941992,18.64270622,1979.6,1979.4,1.73660504]
[1771725942192,18.64270622,1979.6,1979.5,0.43657221]
[1771725942392,1.03766723,1979.8,1979.5,0.43657221]
[1771725942592,1.03766723,1979.8,1979.6,0.43657221]
[1771725942794,1.03766723,1979.8,1979.4,1.73660504]
[1771725942993,1.03766723,1979.8,1979.5,0.43658144]
[1771725943195,1.03766723,1979.8,1979.6,0.43658144]
[1771725943398,1.03766723,1979.8,1979.4,1.73660504]
[1771725943596,1.03766723,1979.8,1979.5,0.43658781]
[1771725943796,1.03766723,1979.8,1979.6,0.43658781]
[1771725944097,1.03766723,1979.8,1979.4,1.73660504]
[1771725944298,1.03766723,1979.8,1979.5,0.43668674]
[1771725944488,1.00410687,1980.0,1979.6,2.15887961]
[1771725944688,1.00410687,1980.0,1979.7,0.42227457]
[1771725944893,1.00410687,1980.0,1979.8,0.42227457]
[1771725945094,1.00410687,1980.0,1979.6,1.73660504]
[1771725945289,1.00410687,1980.0,1979.7,0.42188931]
[1771725945490,1.00410687,1980.0,1979.8,0.42188931]
[1771725945690,1.00410687,1980.0,1979.6,1.73660504]
[1771725945898,1.00410687,1980.0,1979.7,0.42188984]
[1771725946092,1.00410687,1980.0,1979.6,1.73660504]
[1771725946093,1.00410687,1980.0,1979.8,0.42188984]
[1771725946295,1.00410687,1980.0,1979.6,1.73660504]
[1771725946495,1.00410687,1980.0,1979.7,0.42176879]